fUSD/lending_fUSD_20260217
["ID","MTS","AMOUNT","RATE_DAILY","PERIOD"]
[405839623,1771351850456,-350.0,0.00017267,2]
[405839624,1771351850466,-1000.0,0.00017271,2]
[405839625,1771351850475,-350.0,0.00017279,3]
[405839626,1771351850485,-1000.0,0.00017307,2]
[405839627,1771351850496,-1000.0,0.00017323,2]
[405839628,1771351850505,-1000.0,0.00017326,2]
[405839629,1771351850515,-1000.0,0.00017327,2]
[405839630,1771351850524,-1000.0,0.00017373,2]
[405839631,1771351850534,-824.0,0.00017378,2]
[405839632,1771351850543,-1000.0,0.00017395,2]
[405839633,1771351850552,-1000.0,0.000174,2]
[405839634,1771351850561,-150.0,0.000174,2]
[405839635,1771351850570,-1000.0,0.00017403,2]
[405839636,1771351850580,-150.0,0.00017405,2]
[405839637,1771351850590,-1000.0,0.0001741,2]
[405839638,1771351850599,-1000.0,0.00017412,2]
[405839639,1771351850609,-1000.0,0.00017422,2]
[405839640,1771351850618,-1000.0,0.00017432,2]
[405839641,1771351850627,-1000.0,0.00017432,2]
[405839642,1771351850636,-150.0,0.0001744,2]
[405839643,1771351850645,-1000.0,0.0001745,2]
[405839644,1771351850654,-1000.0,0.0001745,2]
[405839645,1771351850664,-2000.0,0.00017452,7]
[405839646,1771351850673,-1000.0,0.00017461,2]
[405839647,1771351850682,-189.18339057,0.00017483,2]
[405839648,1771351850691,-150.0,0.00017486,2]
[405839649,1771351850700,-300.0,0.00017486,2]
[405839650,1771351850708,-1000.0,0.00017489,2]
[405839651,1771351850717,-824.0,0.00017495,2]
[405839652,1771351850726,-1000.0,0.00017496,2]
[405839653,1771351850734,-824.0,0.00017498,2]
[405839654,1771351850744,-3732.0,0.000175,2]
[405839655,1771351850753,-1000.0,0.00017509,2]
[405839656,1771351850762,-1000.0,0.00017512,2]
[405839657,1771351850771,-269.09,0.00017518,2]
[405839658,1771351850780,-1000.0,0.00017521,2]
[405839659,1771351850789,-1000.0,0.00017531,2]
[405839660,1771351850798,-1000.0,0.00017531,2]
[405839661,1771351850807,-150.0,0.00017534,20]
[405839662,1771351850816,-1000.0,0.00017536,2]
[405839663,1771351850825,-1517.0,0.00017536,2]
[405839664,1771351850835,-1000.0,0.00017543,2]
[405839665,1771351850844,-269.09,0.00017547,2]
[405839666,1771351850853,-1000.0,0.00017548,2]
[405839667,1771351850863,-1000.0,0.00017549,2]
[405839668,1771351850871,-166.11141928,0.0001757,2]
[405839669,1771351850881,-269.09,0.00017576,2]
[405839670,1771351850890,-1000.0,0.0001758,2]
[405839671,1771351850899,-1000.0,0.00017588,2]
[405839672,1771351850908,-150.0,0.00017589,20]
[405839673,1771351850917,-1000.0,0.00017591,2]
[405839674,1771351850927,-1000.0,0.00017591,2]
[405839675,1771351850936,-1000.0,0.00017591,2]
[405839676,1771351850944,-1000.0,0.00017591,2]
[405839677,1771351850954,-1000.0,0.00017591,2]
[405839678,1771351850962,-1000.0,0.00017591,2]
[405839679,1771351850972,-1000.0,0.00017591,2]
[405839680,1771351850980,-1000.0,0.00017591,2]
[405839681,1771351850989,-1000.0,0.00017591,2]
[405839682,1771351850998,-1000.0,0.00017591,2]
[405839683,1771351851008,-177.8,0.00017593,2]
[405839684,1771351851017,-150.0,0.00017595,2]
[405839685,1771351851026,-824.0,0.00017598,2]
[405839686,1771351851035,-1000.0,0.00017605,2]
[405839687,1771351851043,-824.0,0.00017605,2]
[405839688,1771351851053,-350.0,0.00017631,2]
[405839689,1771351851062,-177.8,0.00017638,2]
[405839690,1771351851076,-10722.1227909,0.0001764,2]
[405839691,1771351851085,-150.0,0.0001764,2]
[405839692,1771351851095,-150.0,0.00017644,20]
[405839693,1771351851105,-192.29,0.00017646,2]
[405839694,1771351851115,-287.61899177,0.00017647,2]
[405839695,1771351851126,-150.0,0.00017662,2]
[405839696,1771351851137,-177.8,0.00017682,2]
[405839697,1771351851146,-288.0,0.00017696,2]
[405839698,1771351851158,-250.53819001,0.00017698,20]
[405839699,1771351851168,-1000.0,0.00017701,2]
[405839700,1771351851178,-192.29,0.00017704,2]
[405839701,1771351851187,-1000.0,0.00017712,2]
[405839702,1771351851199,-1000.0,0.00017713,2]
[405839703,1771351851208,-1000.0,0.0001772,2]
[405839704,1771351851218,-1000.0,0.00017724,2]
[405839705,1771351851228,-500.0,0.00017726,7]
[405839706,1771351851237,-4479.21,0.00017735,2]
[405839707,1771351851247,-150.0,0.00017743,2]
[405839708,1771351851257,-1000.0,0.00017756,2]
[405839709,1771351851266,-242.545381,0.00017761,7]
[405839710,1771351851275,-150.0,0.00017762,2]
[405839711,1771351851285,-1000.0,0.00017765,2]
[405839712,1771351851294,-824.0,0.00017766,2]
[405839713,1771351851303,-1000.0,0.00017774,2]
[405839714,1771351851314,-1000.0,0.00017801,2]
[405839715,1771351851324,-1000.0,0.00017802,2]
[405839716,1771351851334,-1000.0,0.00017803,2]
[405839717,1771351851343,-444.64,0.00017808,2]
[405839718,1771351851352,-500.0,0.00017808,2]
[405839719,1771351851361,-500.0,0.00017808,2]
[405839720,1771351851370,-500.0,0.00017808,2]
[405839721,1771351851380,-500.0,0.00017808,2]
[405839722,1771351851389,-500.0,0.00017808,2]
[405839723,1771351851398,-500.0,0.00017808,2]
[405839724,1771351851407,-500.0,0.00017808,2]
[405839725,1771351851417,-500.0,0.00017808,2]
[405839726,1771351851426,-500.0,0.00017808,2]
[405839727,1771351851436,-500.0,0.00017808,2]
[405839728,1771351851444,-500.0,0.00017808,2]
[405839729,1771351851454,-500.0,0.00017808,2]
[405839730,1771351851463,-500.0,0.00017808,2]
[405839731,1771351851474,-500.0,0.00017808,2]
[405839732,1771351851483,-500.0,0.00017808,2]
[405839733,1771351851492,-500.0,0.00017808,2]
[405839734,1771351851501,-557.95699463,0.00017808,2]
[405839735,1771351851510,-500.0,0.00017808,2]
[405839736,1771351851519,-500.0,0.00017808,2]
[405839737,1771351851528,-500.0,0.00017808,2]
[405839738,1771351851537,-500.0,0.00017808,2]
[405839739,1771351851546,-169.43010376,0.00017808,2]
[405839740,1771351851555,-800.0,0.00017808,2]
[405839741,1771351851564,-250.0,0.00017808,20]
[405839742,1771351851573,-250.0,0.00017808,20]
[405839743,1771351851582,-250.0,0.00017808,20]
[405839744,1771351851591,-250.0,0.00017808,20]
[405839745,1771351851600,-250.0,0.00017808,20]
[405839746,1771351851609,-250.0,0.00017808,20]
[405839747,1771351851617,-250.0,0.00017808,20]
[405839748,1771351851626,-250.0,0.00017808,20]
[405839749,1771351851635,-250.0,0.00017808,20]
[405839750,1771351851644,-250.0,0.00017808,20]
[405839751,1771351851653,-250.0,0.00017808,20]
[405839752,1771351851662,-250.0,0.00017808,20]
[405839753,1771351851671,-151.0,0.0001782,5]
[405839754,1771351851681,-2000.0,0.0001782,2]
[405839755,1771351851690,-2000.0,0.0001782,2]
[405839756,1771351851700,-1000.0,0.00017829,2]
[405839757,1771351851709,-1000.0,0.00017829,2]
[405839758,1771351851718,-150.0,0.00017844,2]
[405839759,1771351851728,-1000.0,0.00017854,2]
[405839760,1771351851737,-500.0,0.00017856,2]
[405839761,1771351851747,-200.0,0.00017856,2]
[405839762,1771351851756,-1000.0,0.00017865,2]
[405839763,1771351851766,-1000.0,0.00017866,2]
[405839764,1771351851774,-1000.0,0.00017879,2]
[405839765,1771351851784,-1580.81275906,0.00017884,2]
[405839766,1771351851793,-1000.0,0.00017892,2]
[405839767,1771351851802,-76805.89310854,0.00017894,2]
[405839768,1771351851811,-840.90433578,0.00017894,2]
[405839769,1771351851820,-185.29568935,0.000179,2]
[405839770,1771351851830,-4488.74151012,0.000179,2]
[405839771,1771351851839,-5209.65985741,0.000179,2]
[405839772,1771351851849,-1105.913,0.000179,2]
[405839773,1771351851858,-1000.0,0.00017913,2]
[405839774,1771351851868,-1000.0,0.00017918,2]
[405839775,1771351851877,-1000.0,0.00017935,2]
[405839776,1771351851887,-1000.0,0.00017943,2]
[405839777,1771351851896,-150.0,0.00017955,2]
[405839778,1771351851906,-1000.0,0.00017957,2]
[405839779,1771351851915,-1000.0,0.00017968,2]
[405839780,1771351851924,-350.0,0.0001797,2]
[405839781,1771351851934,-1000.0,0.00017973,2]
[405839782,1771351851943,-1000.0,0.0001798,2]
[405839783,1771351851953,-351.95234324,0.0001799,2]
[405839784,1771351851962,-500.0,0.0001799,5]
[405839785,1771351851972,-500.0,0.0001799,2]
[405839786,1771351851981,-174047.2462509,0.00017994,2]
[405839787,1771351851990,-4910.6966649,0.00017994,2]
[405839788,1771351851999,-6029.3768945,0.00017994,2]
[405839789,1771351852008,-619588.5827202,0.00017994,2]
[405839790,1771351852018,-3391.5245031,0.00017994,2]
[405839791,1771351852027,-735.9549405,0.00017994,2]
[405839792,1771351852036,-4360.5315041,0.00017994,2]
[405839793,1771351852045,-431.2849758,0.00017996,3]
[405839794,1771351852055,-250.0,0.00017996,3]
[405839795,1771351852066,-184.99591854,0.00017996,3]
[405839796,1771351852076,-721.12765535,0.00017996,3]
[405839797,1771351852087,-151.0,0.00017996,3]
[405839798,1771351852097,-250.0,0.00017996,3]
[405839799,1771351852107,-500.0,0.00017996,3]
[405839800,1771351852120,-747.8093786,0.00017996,3]
[405839801,1771351852129,-250.0,0.00017996,3]
[405839802,1771351852139,-151.0,0.00017996,3]
[405839803,1771351852148,-500.0,0.00017996,3]
[405839804,1771351852157,-775.47832561,0.00017996,3]
[405839805,1771351852166,-250.0,0.00017996,3]
[405839806,1771351852176,-151.0,0.00017996,3]
[405839807,1771351852185,-500.0,0.00017996,3]
[405839808,1771351852195,-804.17102365,0.00017996,3]
[405839809,1771351852204,-250.0,0.00017996,3]
[405839810,1771351852215,-500.0,0.00017996,3]
[405839811,1771351852227,-151.0,0.00017996,3]
[405839812,1771351852236,-833.92535153,0.00017996,3]
[405839813,1771351852245,-500.0,0.00017996,3]
[405839814,1771351852255,-151.0,0.00017996,3]
[405839815,1771351852264,-864.78058953,0.00017996,3]
[405839816,1771351852273,-500.0,0.00017996,3]
[405839817,1771351852283,-151.0,0.00017996,3]
[405839818,1771351852292,-250.0,0.00017996,3]
[405839819,1771351852302,-896.77747135,0.00017996,3]
[405839820,1771351852311,-500.0,0.00017996,3]
[405839821,1771351852320,-151.0,0.00017996,3]
[405839822,1771351852331,-250.0,0.00017996,3]
[405839823,1771351852340,-929.95823779,0.00017996,3]
[405839824,1771351852350,-500.0,0.00017996,3]
[405839825,1771351852360,-964.36669259,0.00017996,3]
[405839826,1771351852369,-250.0,0.00017996,3]
[405839827,1771351852379,-151.0,0.00017996,3]
[405839828,1771351852388,-500.0,0.00017996,3]
[405839829,1771351852398,-245.86756026,0.00017996,3]
[405839830,1771351852407,-250.0,0.00017996,3]
[405839831,1771351852417,-151.0,0.00017996,3]
[405839832,1771351852427,-500.0,0.00017996,3]
[405839833,1771351852436,-250.0,0.00017996,3]
[405839834,1771351852446,-151.0,0.00017996,3]
[405839835,1771351852456,-500.0,0.00017996,3]
[405839836,1771351852465,-250.0,0.00017996,3]
[405839837,1771351852475,-151.0,0.00017996,3]
[405839838,1771351852484,-250.0,0.00017996,3]
[405839839,1771351852494,-250.0,0.00017996,3]
[405839840,1771351852504,-250.0,0.00017996,3]
[405839841,1771351852513,-250.0,0.00017996,3]
[405839842,1771351852523,-299.40346672,0.00017996,3]
[405839843,1771351852533,-200.0,0.00017996,3]
[405839844,1771351852542,-200.0,0.00017996,3]
[405839845,1771351852552,-200.0,0.00017996,3]
[405839846,1771351852562,-200.0,0.00017996,3]
[405839847,1771351852571,-200.0,0.00017996,3]
[405839848,1771351852581,-250.0,0.00017996,3]
[405839849,1771351852590,-500.0,0.00017996,3]
[405839850,1771351852600,-200.0,0.00017996,3]
[405839851,1771351852609,-250.0,0.00017996,3]
[405839852,1771351852618,-500.0,0.00017996,3]
[405839853,1771351852628,-200.0,0.00017996,3]
[405839854,1771351852638,-250.0,0.00017996,3]
[405839855,1771351852647,-500.0,0.00017996,3]
[405839856,1771351852656,-250.0,0.00017996,3]
[405839857,1771351852666,-500.0,0.00017996,3]
[405839858,1771351852675,-250.0,0.00017996,3]
[405839859,1771351852684,-200.0,0.00017996,3]
[405839860,1771351852693,-250.0,0.00017996,3]
[405839861,1771351852703,-500.0,0.00017996,3]
[405839862,1771351852712,-250.0,0.00017996,3]
[405839863,1771351852721,-200.0,0.00017996,3]
[405839864,1771351852730,-250.0,0.00017996,3]
[405839865,1771351852740,-500.0,0.00017996,3]
[405839866,1771351852749,-250.0,0.00017996,3]
[405839867,1771351852758,-200.0,0.00017996,3]
[405839868,1771351852767,-174.5920753,0.00017996,3]
[405839869,1771351852776,-250.0,0.00017996,3]
[405839870,1771351852786,-500.0,0.00017996,3]
[405839871,1771351852795,-500.0,0.00017996,3]
[405839872,1771351852804,-250.0,0.00017996,3]
[405839873,1771351852813,-164.43370107,0.00017996,3]
[405839874,1771351852822,-250.0,0.00017996,3]
[405839875,1771351852834,-500.0,0.00017996,3]
[405839876,1771351852843,-250.0,0.00017996,3]
[405839877,1771351852853,-174.61919141,0.00017996,3]
[405839878,1771351852862,-250.0,0.00017996,3]
[405839879,1771351852872,-500.0,0.00017996,3]
[405839880,1771351852881,-250.0,0.00017996,3]
[405839881,1771351852891,-181.08010149,0.00017996,3]
[405839882,1771351852900,-250.0,0.00017996,3]
[405839883,1771351852910,-500.0,0.00017996,3]
[405839884,1771351852919,-250.0,0.00017996,3]
[405839885,1771351852928,-187.78006525,0.00017996,3]
[405839886,1771351852938,-250.0,0.00017996,3]
[405839887,1771351852949,-500.0,0.00017996,3]
[405839888,1771351852959,-250.0,0.00017996,3]
[405839889,1771351852968,-194.72792766,0.00017996,3]
[405839890,1771351852977,-200.0,0.00017996,3]
[405839891,1771351852987,-500.0,0.00017996,3]
[405839892,1771351852997,-201.93286099,0.00017996,3]
[405839893,1771351853006,-200.0,0.00017996,3]
[405839894,1771351853016,-250.0,0.00017996,3]
[405839895,1771351853025,-500.0,0.00017996,3]
[405839896,1771351853036,-209.40437684,0.00017996,3]
[405839897,1771351853045,-200.0,0.00017996,3]
[405839898,1771351853054,-250.0,0.00017996,3]
[405839899,1771351853064,-500.0,0.00017996,3]
[405839900,1771351853076,-217.15233878,0.00017996,3]
[405839901,1771351853088,-218.04759767,0.00017996,3]
[405839902,1771351853098,-250.0,0.00017996,3]
[405839903,1771351853107,-500.0,0.00017996,3]
[405839904,1771351853118,-225.18697532,0.00017996,3]
[405839905,1771351853128,-500.0,0.00017996,3]
[405839906,1771351853139,-233.51889341,0.00017996,3]
[405839907,1771351853150,-500.0,0.00017996,3]
[405839908,1771351853159,-242.15909246,0.00017996,3]
[405839909,1771351853169,-251.11897888,0.00017996,3]
[405839910,1771351853178,-260.4103811,0.00017996,3]
[405839911,1771351853187,-270.0455652,0.00017996,3]
[405839912,1771351853197,-250.0,0.00017996,3]
[405839913,1771351853206,-280.03725112,0.00017996,3]
[405839914,1771351853215,-250.0,0.00017996,3]
[405839915,1771351853225,-290.39862941,0.00017996,3]
[405839916,1771351853234,-250.0,0.00017996,3]
[405839917,1771351853243,-250.0,0.00017996,3]
[405839918,1771351853252,-301.1433787,0.00017996,3]
[405839919,1771351853262,-250.0,0.00017996,3]
[405839920,1771351853271,-250.0,0.00017996,3]
[405839921,1771351853281,-250.0,0.00017996,3]
[405839922,1771351853290,-250.0,0.00017996,3]
[405839923,1771351853299,-250.0,0.00017996,3]
[405839924,1771351853308,-250.0,0.00017996,3]
[405839925,1771351853318,-250.0,0.00017996,3]
[405839926,1771351853328,-250.0,0.00017996,3]
[405839927,1771351853338,-250.0,0.00017996,3]
[405839928,1771351853348,-250.0,0.00017996,3]
[405839929,1771351853358,-250.0,0.00017996,3]
[405839930,1771351853368,-693.3919763,0.00017996,3]
[405839931,1771351853378,-250.0,0.00017996,3]
[405839932,1771351853387,-719.04747942,0.00017996,3]
[405839933,1771351853397,-250.0,0.00017996,3]
[405839934,1771351853407,-250.0,0.00017996,3]
[405839935,1771351853417,-745.65223616,0.00017996,3]
[405839936,1771351853427,-250.0,0.00017996,3]
[405839937,1771351853437,-773.2413689,0.00017996,3]
[405839938,1771351853447,-250.0,0.00017996,3]
[405839939,1771351853457,-801.85129955,0.00017996,3]
[405839940,1771351853467,-250.0,0.00017996,3]
[405839941,1771351853477,-831.51979763,0.00017996,3]
[405839942,1771351853487,-250.0,0.00017996,3]
[405839943,1771351853498,-862.28603014,0.00017996,3]
[405839944,1771351853508,-894.19061326,0.00017996,3]
[405839945,1771351853518,-200.0,0.00017996,3]
[405839946,1771351853528,-927.27566595,0.00017996,3]
[405839947,1771351853538,-200.0,0.00017996,3]
[405839948,1771351853547,-961.58486559,0.00017996,3]
[405839949,1771351853557,-997.16350561,0.00017996,3]
[405839950,1771351853567,-151.0,0.00017996,3]
[405839951,1771351853577,-151.0,0.00017996,3]
[405839952,1771351853586,-151.0,0.00017996,3]
[405839953,1771351853596,-151.0,0.00017996,3]
[405839954,1771351853605,-151.0,0.00017996,3]
[405839955,1771351853615,-151.0,0.00017996,3]
[405839956,1771351853624,-151.0,0.00017996,3]
[405839957,1771351853634,-151.0,0.00017996,3]
[405839958,1771351853644,-151.0,0.00017996,3]
[405839959,1771351853654,-3000.0,0.00017996,3]
[405839960,1771351853663,-151.0,0.00017996,3]
[405839961,1771351853673,-743.50770149,0.00017996,3]
[405839962,1771351853683,-151.0,0.00017996,3]
[405839963,1771351853692,-3000.0,0.00017996,3]
[405839964,1771351853702,-151.0,0.00017996,3]
[405839965,1771351853712,-771.01748645,0.00017996,3]
[405839966,1771351853721,-151.0,0.00017996,3]
[405839967,1771351853731,-3000.0,0.00017996,3]
[405839968,1771351853741,-151.0,0.00017996,3]
[405839969,1771351853751,-799.54513345,0.00017996,3]
[405839970,1771351853760,-151.0,0.00017996,3]
[405839971,1771351853770,-3000.0,0.00017996,3]
[405839972,1771351853780,-151.0,0.00017996,3]
[405839973,1771351853997,-829.12830338,0.00017996,3]
[405839974,1771351854034,-151.0,0.00017996,3]
[405839975,1771351854044,-3000.0,0.00017996,3]
[405839976,1771351854054,-151.0,0.00017996,3]
[405839977,1771351854065,-171.52852621,0.00017996,3]
[405839978,1771351854076,-151.0,0.00017996,3]
[405839979,1771351854089,-3000.0,0.00017996,3]
[405839980,1771351854099,-151.0,0.00017996,3]
[405839981,1771351854110,-151.0,0.00017996,3]
[405839982,1771351854120,-3000.0,0.00017996,3]
[405839983,1771351854130,-151.0,0.00017996,3]
[405839984,1771351854140,-2570.81608438,0.00017996,3]
[405839985,1771351854150,-151.0,0.00017996,3]
[405839986,1771351854161,-151.0,0.00017996,3]
[405839987,1771351854171,-151.0,0.00017996,3]
[405839988,1771351854181,-151.0,0.00017996,3]
[405839989,1771351854190,-173.57638878,0.00017997,3]
[405839990,1771351854200,-150.0,0.00017997,2]
[405839991,1771351854209,-2067.06589275,0.00017999,2]
[405839992,1771351854219,-300.0,0.00017999,2]
[405839993,1771351854228,-666.0,0.00017999,2]
[405839994,1771351854237,-300.0,0.00017999,2]
[405839995,1771351854246,-666.0,0.00017999,2]
[405839996,1771351854255,-13112.95811108,0.00017999,2]
[405839997,1771351854266,-300.0,0.00017999,2]
[405839998,1771351854275,-666.0,0.00017999,2]
[405839999,1771351854284,-300.0,0.00017999,2]
[405840000,1771351854293,-666.0,0.00017999,2]
[405840001,1771351854302,-300.0,0.00017999,2]
[405840002,1771351854312,-150.0,0.00017999,2]
[405840003,1771351854321,-150.0,0.00017999,2]
[405840004,1771351854330,-150.0,0.00017999,2]
[405840005,1771351854340,-186.7212963,0.00017999,2]
[405840006,1771351854351,-150.0,0.00018,2]
[405840007,1771351854361,-1804872.27788231,0.00018,2]
[405840008,1771351854908,-4580.05,0.00018,2]
[405840009,1771351854920,-2784.03994496,0.00018,2]
[405840010,1771351854965,-250.0,0.00017808,20]
[405840011,1771351854975,-1462.5,0.00018,2]
[405840012,1771351854990,-275.66598098,0.00018,2]
[405840013,1771351855309,-1000.0,8.219e-05,2]
[405840014,1771351855319,-1000.0,9.247e-05,2]
[405840015,1771351855329,-1000.0,0.00010274,2]
[405840016,1771351855339,-1000.0,0.00011301,2]
[405840017,1771351855349,-1000.0,0.00012329,2]
[405840018,1771351855359,-250.0,0.00017808,20]
[405840019,1771351855368,-250.0,0.00017808,20]
[405840020,1771351855378,-250.0,0.00017808,20]
[405840021,1771351855387,-250.0,0.00017808,20]
[405840022,1771351855397,-250.0,0.00017808,20]
[405840023,1771351855406,-250.0,0.00017808,20]
[405840024,1771351855416,-250.0,0.00017808,20]
[405840025,1771351855425,-250.0,0.00017808,20]
[405840026,1771351855434,-250.0,0.00017808,20]
[405840027,1771351855444,-100.61732233,0.00018,2]
[405840028,1771351855456,-1351.50601158,0.00018,2]
[405840029,1771351855507,-250.0,0.00017808,20]
[405840030,1771351855517,-9128.68163511,0.00018,2]
[405840031,1771352111120,20575.18734803,6.6e-05,3]
[405840032,1771352111165,27578.1087245,6.6e-05,3]
[405840033,1771352111204,1540.70392747,6.6e-05,3]
[405840034,1771352111228,10000.01,6.6e-05,3]
[405840035,1771352111249,10000.01,6.6e-05,3]
[405840036,1771352111271,9121.19359093,6.6e-05,3]
[405840037,1771352111308,878.81640907,6.6e-05,3]
[405840038,1771352111330,10000.01,6.6e-05,3]
[405840039,1771352111352,10000.01,6.6e-05,3]
[405840040,1771352111374,2614.23484583,6.6e-05,3]
[405840041,1771352111408,7385.77515417,6.6e-05,3]
[405840042,1771352111431,10000.01,6.6e-05,3]
[405840043,1771352111453,10000.01,6.6e-05,3]
[405840044,1771352111476,3276.12236424,6.6e-05,3]
[405840045,1771352111516,6723.88763576,6.6e-05,3]
[405840046,1771352111537,10000.01,6.6e-05,3]
[405840047,1771352115364,-10000.01,6.6e-05,3]
[405840048,1771352115487,-1559.31075341,6.6e-05,3]
[405840049,1771352115510,-6881.38849318,6.6e-05,3]
[405840050,1771352115597,-10000.01,6.6e-05,3]
[405840051,1771352115719,-10000.01,6.6e-05,3]
[405840052,1771352115843,-10000.01,6.6e-05,3]
[405840053,1771352115957,-4872.78849166,6.6e-05,3]
[405840054,1771352115992,-254.43301668,6.6e-05,3]
[405840055,1771352116064,-10000.01,6.6e-05,3]
[405840056,1771352116253,-10000.01,6.6e-05,3]
[405840057,1771352116398,-3551.71946423,6.6e-05,3]
[405840058,1771352116420,-2896.57107154,6.6e-05,3]
[405840062,1771352403736,5000.01,6.5e-05,3]
[405840063,1771352403759,2284.1779136,6.5e-05,3]
[405840064,1771352403791,2715.8320864,6.5e-05,3]
[405840065,1771352403814,5000.01,6.5e-05,3]
[405840066,1771352403836,4918.9867624,6.5e-05,3]
[405840067,1771352403876,81.0232376,6.5e-05,3]
[405840068,1771352403899,5000.01,6.5e-05,3]
[405840069,1771352403921,3986.7016544,6.5e-05,3]
[405840070,1771352403975,1013.3083456,6.5e-05,3]
[405840071,1771352403996,5000.01,6.5e-05,3]
[405840072,1771352404017,5000.01,6.5e-05,3]
[405840073,1771352404039,1621.5005032,6.5e-05,3]
[405840074,1771352404080,3378.5094968,6.5e-05,3]
[405840075,1771352404103,5000.01,6.5e-05,3]
[405840076,1771352404128,2472.7623736,6.5e-05,3]
[405840079,1771352447452,979.46,6.065e-05,2]
[405840080,1771352447692,979.46,6.121e-05,2]
[405840081,1771352448770,979.46,6.178e-05,2]
[405840082,1771352448918,979.46,6.234e-05,2]
[405840083,1771352448959,979.46,6.29e-05,2]
[405840084,1771352449002,979.46,6.347e-05,2]
[405840085,1771352449046,979.46,6.403e-05,2]
[405840086,1771352449091,979.46,6.459e-05,2]
[405840087,1771352449417,979.46,6.516e-05,2]
[405840088,1771352449629,979.46,6.572e-05,2]
[405840095,1771352472963,4912.22,6.369e-05,2]
[405840096,1771352491865,-153.0,6.6e-05,3]
[405840097,1771352491886,-979.46,6.628e-05,2]
[405840098,1771352491908,-979.46,6.685e-05,2]
[405840099,1771352491930,-366.88798499,6.693e-05,2]
[405840100,1771352491951,-1200.0,6.696e-05,2]
[405840101,1771352491971,-300.0,6.696e-05,2]
[405840102,1771352491990,-300.0,6.696e-05,2]
[405840103,1771352492009,-150.0,6.696e-05,2]
[405840104,1771352492029,-150.35941026,6.697e-05,2]
[405840105,1771352492049,-500.0,6.697e-05,2]
[405840106,1771352492070,-200.0,6.697e-05,2]
[405840107,1771352492095,-500.0,6.697e-05,2]
[405840108,1771352492116,-500.0,6.697e-05,2]
[405840109,1771352492140,-500.0,6.697e-05,2]
[405840110,1771352492167,-500.0,6.697e-05,2]
[405840111,1771352492188,-300.0,6.697e-05,2]
[405840112,1771352492211,-500.0,6.697e-05,2]
[405840113,1771352492233,-500.0,6.697e-05,2]
[405840114,1771352492258,-500.0,6.697e-05,2]
[405840115,1771352492279,-500.0,6.697e-05,2]
[405840116,1771352492301,-500.0,6.697e-05,2]
[405840117,1771352492323,-620.08982755,6.697e-05,2]
[405840118,1771352492344,-500.0,6.697e-05,2]
[405840119,1771352492366,-500.0,6.697e-05,2]
[405840120,1771352492388,-500.0,6.697e-05,2]
[405840121,1771352492411,-500.0,6.697e-05,2]
[405840122,1771352492436,-500.0,6.697e-05,2]
[405840123,1771352492459,-500.0,6.697e-05,2]
[405840124,1771352492485,-500.0,6.697e-05,2]
[405840125,1771352492913,-500.0,6.697e-05,2]
[405840126,1771352492935,-500.0,6.697e-05,2]
[405840127,1771352492957,-500.0,6.697e-05,2]
[405840128,1771352492979,-500.0,6.697e-05,2]
[405840129,1771352493000,-500.0,6.697e-05,2]
[405840130,1771352493022,-500.0,6.697e-05,2]
[405840131,1771352493042,-500.0,6.697e-05,2]
[405840132,1771352493063,-500.0,6.697e-05,2]
[405840133,1771352493084,-500.0,6.697e-05,2]